bitfinex/quotes_SOLUSD_20250821
["timestamp","ask_amount","ask_price","bid_price","bid_amount"]
[1755772608180,45.05162677,184.34,184.33,0.71]
[1755772608690,2.83162677,184.34,184.33,4.57089762]
[1755772609056,42.28,184.35,184.33,4.57089762]
[1755772609254,42.28,184.35,184.34,4.54089762]
[1755772609483,42.28,184.35,184.34,0.68]
[1755772609689,42.28,184.35,184.34,4.54089762]
[1755772610515,0.06,184.35,184.34,4.54089762]
[1755772611385,0.06,184.35,184.33,0.03]
[1755772611592,42.2,184.34,184.33,0.03]
[1755772611775,47.00522076,184.34,184.33,0.03]
[1755772611978,64.21927056,184.34,184.33,0.03]
[1755772613188,64.21939011,184.34,184.33,0.03]
[1755772614593,60.35849249,184.34,184.33,0.03]
[1755772614901,64.21939011,184.34,184.33,0.03]
[1755772618810,72.76253695,184.34,184.33,0.03]
[1755772619312,64.21939011,184.34,184.33,0.03]
[1755772620303,22.01939011,184.34,184.33,0.03]
[1755772620519,64.21939011,184.34,184.33,0.03]
[1755772620681,3.61857534,184.34,184.33,0.71]
[1755772620887,0.06,184.35,184.33,4.57089762]
[1755772621088,0.06,184.35,184.34,3.86089762]
[1755772621296,0.06,184.35,184.33,0.71]
[1755772621503,42.28,184.35,184.33,0.71]
[1755772622527,4.14522076,184.34,184.33,0.03]
[1755772622885,18.15700697,184.34,184.33,0.03]
[1755772623088,22.01790459,184.34,184.33,0.03]
[1755772623813,7.76231058,184.34,184.33,0.03]
[1755772624684,8.42231058,184.34,184.33,0.03]
[1755772625516,50.66231058,184.34,184.33,0.03]
[1755772626826,50.00231058,184.34,184.33,0.03]
[1755772627513,46.14141296,184.34,184.33,0.03]
[1755772628018,50.00231058,184.34,184.33,0.03]
[1755772629702,52.83299716,184.34,184.33,0.03]
[1755772631231,53.49299716,184.34,184.33,0.03]
[1755772631398,67.08859117,184.34,184.33,0.03]
[1755772631799,71.10708564,184.34,184.33,0.03]
[1755772632001,67.08859117,184.34,184.33,0.03]
[1755772633926,67.06859117,184.34,184.33,0.03]
[1755772637307,199.56859117,184.34,184.33,0.03]
[1755772638247,225.56859117,184.34,184.33,0.03]
[1755772639448,199.56859117,184.34,184.33,0.03]
[1755772641041,203.42948879,184.34,184.33,0.03]
[1755772643239,70.92948879,184.34,184.33,0.03]
[1755772644969,67.06859117,184.34,184.33,0.03]
[1755772646157,24.18859117,184.34,184.33,0.03]
[1755772646455,66.38859117,184.34,184.33,0.03]
[1755772646764,48.6477764,184.34,184.33,0.71]
[1755772646935,48.93209954,184.34,184.33,0.71]
[1755772647252,48.6477764,184.34,184.33,0.71]
[1755772647453,48.93209954,184.34,184.33,0.71]
[1755772647629,52.79299716,184.34,184.33,0.71]
[1755772648052,52.79299716,184.34,184.33,0.03]
[1755772652846,67.04859117,184.34,184.33,0.03]
[1755772655081,93.04859117,184.34,184.33,0.03]
[1755772655580,50.84859117,184.34,184.33,0.03]
[1755772655878,93.00859117,184.34,184.33,0.03]
[1755772656082,97.0252549,184.34,184.33,0.03]
[1755772657455,96.3652549,184.34,184.33,0.03]
[1755772657651,24.18859117,184.34,184.33,0.03]
[1755772657879,88.46769355,184.34,184.33,0.03]
[1755772658082,10.30867402,184.34,184.33,0.71]
[1755772658378,52.75299716,184.34,184.33,0.71]
[1755772659278,48.89209954,184.34,184.33,0.71]
[1755772659869,52.75299716,184.34,184.33,0.71]
[1755772660783,48.89209954,184.34,184.33,0.71]
[1755772661788,52.75299716,184.34,184.33,0.71]
[1755772661989,10.59299716,184.34,184.33,0.71]
[1755772662185,2.83068658,184.34,184.33,0.71]
[1755772662393,44.97068658,184.34,184.33,0.71]
[1755772662563,0.06,184.35,184.33,4.57089762]
[1755772662874,0.06,184.35,184.34,3.86089762]
[1755772663076,0.06,184.35,184.34,4.54089762]
[1755772664399,42.2,184.35,184.34,0.68]
[1755772664978,42.2,184.35,184.33,0.03]
[1755772665862,46.06089762,184.35,184.33,0.03]
[1755772666288,4.14522076,184.34,184.33,0.03]
[1755772666868,4.86522076,184.34,184.33,0.03]
[1755772667283,0.28432314,184.34,184.33,0.69]
[1755772667791,46.06089762,184.35,184.33,0.69]
[1755772667792,42.2,184.35,184.33,0.69]
[1755772667995,0.06,184.35,184.33,4.55089762]
[1755772668203,42.16,184.34,184.33,3.89089762]
[1755772668516,42.16,184.34,184.33,0.03]
[1755772668721,42.16,184.34,184.33,0.69]
[1755772672806,42.16,184.34,184.33,4.55089762]
[1755772673183,0.06,184.35,184.33,4.55089762]
[1755772673385,0.06,184.35,184.34,30.52089762]
[1755772675406,0.06,184.35,184.34,4.52089762]
[1755772676410,0.06,184.35,184.33,0.03]
[1755772676411,42.18,184.35,184.33,0.03]
[1755772676584,4.58089762,184.34,184.33,0.03]
[1755772676787,4.58089762,184.34,184.31,0.03]
[1755772676788,25.92467159,184.34,184.31,0.03]
[1755772676988,21.31738925,184.32,184.29,0.03]
[1755772677206,4.14522076,184.3,184.29,0.03]
[1755772677602,4.86522076,184.3,184.29,0.03]
[1755772678792,1.00432314,184.3,184.29,0.03]
[1755772678994,4.86522076,184.3,184.29,0.03]
[1755772680212,0.28432314,184.3,184.29,0.03]
[1755772680545,4.86522076,184.3,184.29,0.03]
[1755772680733,4.14522076,184.3,184.29,0.03]
[1755772681040,3.86089762,184.31,184.29,0.03]
[1755772681341,42.26,184.3,184.29,0.03]
[1755772683224,45.09101326,184.3,184.29,0.03]
[1755772685620,2.83101326,184.3,184.29,0.03]
[1755772685815,49.93623402,184.3,184.29,0.03]
[1755772686632,63.53182803,184.3,184.29,0.03]
[1755772687230,67.1338952,184.3,184.29,0.03]
[1755772689535,67.1538952,184.3,184.29,0.03]
[1755772689745,67.1522931,184.3,184.29,0.03]
[1755772691128,63.57182803,184.3,184.29,0.03]
[1755772691742,67.17139463,184.3,184.29,0.03]
[1755772692323,63.02617387,184.3,184.29,0.03]
[1755772692545,16.42660727,184.3,184.29,0.03]
[1755772692749,63.28750489,184.3,184.29,0.03]
[1755772692939,63.57182803,184.3,184.29,0.03]
[1755772693630,67.17044277,184.3,184.29,0.03]
[1755772693833,63.57182803,184.3,184.29,0.03]
[1755772701684,62.85182803,184.3,184.29,0.03]
[1755772701858,62.79182803,184.3,184.29,0.03]
[1755772702068,63.46182803,184.3,184.29,0.03]
[1755772702767,62.79182803,184.3,184.29,0.03]
[1755772703167,58.93093041,184.3,184.29,0.03]
[1755772703366,62.79182803,184.3,184.29,0.03]
[1755772704559,63.46182803,184.3,184.29,0.03]
[1755772708192,59.60093041,184.3,184.29,0.03]
[1755772708497,63.46182803,184.3,184.29,0.03]
[1755772711955,21.24182803,184.3,184.29,0.03]
[1755772712194,63.40182803,184.3,184.29,0.03]
[1755772712401,16.42660727,184.3,184.29,0.03]
[1755772712699,62.44750489,184.3,184.29,0.03]
[1755772712993,2.83101326,184.3,184.29,0.7]
[1755772713163,44.99101326,184.3,184.29,0.7]
[1755772713687,44.99101326,184.3,184.29,4.56089762]
[1755772713879,44.99101326,184.3,184.29,0.7]
[1755772715608,45.2753364,184.3,184.29,0.7]
[1755772715892,49.13623402,184.3,184.29,0.03]
[1755772716090,49.80623402,184.3,184.29,0.03]
[1755772716665,45.2753364,184.3,184.29,0.03]
[1755772716876,49.13623402,184.3,184.29,0.03]
[1755772718018,45.2753364,184.3,184.29,0.03]
[1755772718503,45.2753364,184.3,184.29,0.7]
[1755772719695,45.2753364,184.3,184.29,0.03]
[1755772720418,45.2553364,184.3,184.29,0.03]
[1755772720616,45.2553364,184.3,184.29,0.7]
[1755772720903,44.97101326,184.3,184.29,0.7]
[1755772721780,2.83101326,184.3,184.29,4.56089762]
[1755772721978,45.2553364,184.3,184.29,0.03]
[1755772722209,49.11623402,184.3,184.29,0.03]
[1755772722980,49.78623402,184.3,184.29,0.03]
[1755772723577,49.11623402,184.3,184.29,0.03]
[1755772723783,49.78623402,184.3,184.29,0.03]
[1755772724414,53.39841602,184.3,184.29,0.03]
[1755772724928,53.41841602,184.3,184.29,0.03]
[1755772727521,6.7275184,184.3,184.29,0.03]
[1755772727702,44.95101326,184.3,184.29,0.73]
[1755772733209,44.95101326,184.3,184.29,0.03]
[1755772735132,45.66101326,184.3,184.29,0.03]
[1755772735907,44.95101326,184.3,184.29,0.03]
[1755772737832,44.95101326,184.3,184.29,4.59089762]
[1755772740737,44.95101326,184.3,184.29,0.03]
[1755772746245,44.89101326,184.3,184.29,0.03]
[1755772747342,2.83101326,184.3,184.29,0.03]
[1755772747641,44.89101326,184.3,184.29,0.03]
[1755772747844,49.74623402,184.3,184.29,0.03]
[1755772750115,45.8853364,184.3,184.29,0.03]
[1755772750321,45.1753364,184.3,184.29,0.03]
[1755772750665,45.8853364,184.3,184.29,0.03]
[1755772750846,3.8253364,184.3,184.29,0.03]
[1755772751025,49.74623402,184.3,184.29,0.03]
[1755772751845,66.9586148,184.3,184.29,0.03]
[1755772755345,7.44212317,184.3,184.29,0.03]
[1755772755665,49.74623402,184.3,184.29,0.03]
[1755772755828,53.36302079,184.3,184.29,0.03]
[1755772756030,53.22085922,184.3,184.29,0.03]
[1755772756449,53.36302079,184.3,184.29,0.03]
[1755772757643,49.05623402,184.3,184.29,0.03]
[1755772758436,6.97623402,184.3,184.29,0.03]
[1755772758633,49.72623402,184.3,184.29,0.03]
[1755772759052,53.34568342,184.3,184.29,0.03]
[1755772759664,49.72623402,184.3,184.29,0.03]
[1755772760469,66.94146296,184.3,184.29,0.03]
[1755772762386,10.59586895,184.3,184.29,0.03]
[1755772762553,49.03623402,184.3,184.29,0.03]
[1755772762873,53.32586895,184.3,184.29,0.03]
[1755772766678,52.65586895,184.3,184.29,0.03]
[1755772767570,6.45064819,184.3,184.29,0.03]
[1755772767776,3.1153364,184.3,184.29,0.03]
[1755772768473,45.1753364,184.3,184.29,0.03]
[1755772771481,45.1753364,184.3,184.29,0.74]
[1755772772589,45.1753364,184.3,184.29,0.03]
[1755772772789,3.1153364,184.3,184.29,0.03]
[1755772772989,45.1753364,184.3,184.29,0.03]
[1755772773787,45.1753364,184.3,184.29,0.74]
[1755772773976,45.1753364,184.3,184.29,0.03]
[1755772775460,44.89101326,184.3,184.29,0.03]
[1755772778467,45.56101326,184.3,184.29,0.03]
[1755772779274,44.89101326,184.3,184.29,0.03]
[1755772779480,44.89101326,184.3,184.29,0.74]
[1755772780896,44.89101326,184.3,184.29,0.03]
[1755772784275,2.83101326,184.3,184.29,0.03]
[1755772784476,0.06,184.31,184.29,4.60089762]
[1755772784809,42.12,184.31,184.3,0.71]
[1755772785008,42.12,184.31,184.3,4.57089762]
[1755772785205,42.12,184.31,184.3,3.86089762]
[1755772785510,0.06,184.31,184.3,30.57089762]
[1755772786783,0.06,184.31,184.3,8.43179524]
[1755772786984,0.06,184.31,184.3,30.57089762]
[1755772787688,0.06,184.31,184.3,34.43179524]
[1755772787878,0.06,184.31,184.3,48.02738925]
[1755772788226,0.06,184.31,184.3,53.45332522]
[1755772788404,0.06,184.31,184.3,133.25332522]
[1755772788806,0.06,184.33,184.31,13.59559401]
[1755772789008,0.06,184.33,184.32,21.31738925]
[1755772789312,0.06,184.33,184.32,22.00738925]
[1755772792388,0.06,184.35,184.32,27.43273647]
[1755772792685,0.06,184.35,184.34,43.45649163]
[1755772793088,0.06,184.37,184.36,29.86089762]
[1755772793596,0.06,184.37,184.36,30.55089762]
[1755772793798,0.06,184.37,184.36,29.86089762]
[1755772794294,0.74,184.37,184.36,3.86089762]
[1755772795384,0.74,184.37,184.33,26.0]
[1755772795385,0.74,184.37,184.35,3.86089762]
[1755772795921,0.68,184.36,184.35,7.72179562]
[1755772796322,0.06,184.37,184.35,7.72179562]
[1755772796501,0.06,184.37,184.36,3.86089762]
[1755772800223,0.06,184.37,184.36,4.55089762]
[1755772800530,0.06,184.37,184.36,30.55089762]
[1755772801595,0.06,184.37,184.36,29.86089762]
[1755772802513,0.06,184.37,184.36,30.55089762]
[1755772802722,0.06,184.37,184.36,32.72498762]
[1755772803098,0.06,184.37,184.36,32.03498762]
[1755772803318,0.06,184.37,184.36,32.72498762]
[1755772804423,0.06,184.37,184.36,46.32058163]
[1755772806837,0.06,184.37,184.36,45.63058163]
[1755772806995,0.06,184.37,184.36,32.03498762]
[1755772811901,0.06,184.37,184.36,32.72498762]
[1755772814125,0.06,184.37,184.36,32.03498762]
[1755772816213,0.06,184.37,184.36,28.17409]
[1755772816417,0.06,184.37,184.36,32.03498762]
[1755772819109,0.06,184.37,184.36,46.32058163]
[1755772819315,0.06,184.37,184.36,32.03498762]
[1755772821538,0.75,184.37,184.36,2.17409]
[1755772821834,0.75,184.37,184.36,28.17409]
[1755772822033,0.75,184.37,184.36,2.17409]
[1755772823215,0.06,184.37,184.36,3.86089762]
[1755772823744,0.75,184.37,184.35,2.829086]
[1755772823913,0.75,184.37,184.36,3.86089762]
[1755772824109,0.75,184.37,184.35,6.68998362]
[1755772824334,0.69,184.36,184.35,2.829086]
[1755772824535,0.69,184.36,184.34,29.86089762]
[1755772825049,0.69,184.36,184.34,32.03522462]
[1755772825411,0.69,184.35,184.34,2.174327]
[1755772826111,0.06,184.37,184.34,29.86089762]
[1755772826112,0.75,184.37,184.34,29.86089762]
[1755772826322,0.75,184.37,184.35,3.86089762]
[1755772827135,0.75,184.37,184.36,3.86089762]
[1755772827504,0.06,184.37,184.36,3.86089762]
[1755772827706,0.06,184.37,184.36,3.23623962]
[1755772828038,0.06,184.37,184.36,3.92623962]
[1755772829944,0.06,184.37,184.36,22.94600373]
[1755772831938,0.06,184.41,184.4,95.43038274]
[1755772832107,0.06,184.41,184.4,3.86089762]
[1755772833221,0.06,184.41,184.4,7.78179562]
[1755772834641,0.06,184.41,184.4,8.47179562]
[1755772835136,0.06,184.41,184.4,27.49038312]
[1755772835641,0.06,184.41,184.4,107.29038312]
[1755772835839,0.06,184.41,184.4,111.15128074]
[1755772838328,0.06,184.41,184.4,101.86738963]
[1755772838644,0.06,184.41,184.4,143.17738963]
[1755772839537,0.06,184.41,184.4,143.86738963]
[1755772839844,0.06,184.41,184.4,143.17738963]
[1755772840812,0.06,184.41,184.4,143.86738963]
[1755772841946,0.06,184.41,184.4,153.15128074]
[1755772842155,0.06,184.43,184.42,39.59559401]
[1755772842318,0.06,184.43,184.42,59.45649163]
[1755772842525,0.06,184.43,184.42,139.94649163]
[1755772842935,0.06,184.43,184.42,142.83420163]
[1755772843136,0.06,184.43,184.42,148.256607]
[1755772845651,0.06,184.43,184.42,142.14420163]
[1755772846235,0.75,184.43,184.42,86.54860762]
[1755772846536,0.75,184.43,184.42,128.54860762]
[1755772846743,0.06,184.43,184.42,128.54860762]
[1755772847120,0.06,184.43,184.42,148.276607]
[1755772847316,0.06,184.43,184.42,68.76093014]
[1755772847539,0.06,184.47,184.46,48.87772116]
[1755772847745,0.06,184.47,184.46,101.1420443]
[1755772847972,0.06,184.5,184.49,26.0]
[1755772848125,0.06,184.5,184.49,89.31738925]
[1755772848340,0.86,184.54,184.49,89.31738925]
[1755772848341,0.2,184.54,184.5,23.87991715]
[1755772848538,0.2,184.54,184.51,70.28279081]
[1755772848853,0.2,184.54,184.51,70.99279081]
[1755772849432,0.2,184.54,184.53,23.87991715]
[1755772849643,0.2,184.54,184.53,59.84081477]
[1755772849842,0.2,184.54,184.53,69.84081477]
[1755772850462,0.2,184.54,184.53,59.84081477]
[1755772850645,0.2,184.54,184.53,17.74081477]
[1755772850851,0.2,184.54,184.53,59.86081477]
[1755772851547,0.2,184.54,184.53,17.45649163]
[1755772851751,0.86,184.54,184.52,26.0]
[1755772851951,0.2,184.54,184.53,45.96089762]
[1755772852153,0.2,184.54,184.53,3.86089762]
[1755772852553,0.86,184.54,184.53,3.86089762]
[1755772852759,0.2,184.54,184.53,3.86089762]
[1755772853151,0.86,184.54,184.53,6.03274562]
[1755772854572,0.86,184.54,184.53,3.86089762]
[1755772854955,0.86,184.54,184.52,42.12]
[1755772855266,0.2,184.54,184.53,3.86089762]
[1755772855672,0.2,184.54,184.53,17.45649163]
[1755772856260,0.2,184.54,184.53,97.25649163]
[1755772856460,0.2,184.54,184.53,97.96649163]
[1755772856682,0.2,184.54,184.53,97.25649163]
[1755772858295,0.2,184.56,184.55,39.59559401]
[1755772858454,0.2,184.56,184.55,165.33649163]
[1755772858655,0.2,184.56,184.55,166.04649163]
[1755772858855,0.2,184.56,184.55,86.53081477]
[1755772859250,0.2,184.56,184.55,88.70195577]
[1755772860359,0.2,184.56,184.55,94.12054151]
[1755772861478,0.06,184.58,184.56,13.87991715]
[1755772861686,0.06,184.58,184.57,63.68171239]
[1755772861978,0.06,184.6,184.57,63.68171239]
[1755772861979,0.06,184.6,184.59,7.72179524]
[1755772862286,0.06,184.6,184.59,49.80179524]
[1755772862653,0.06,184.6,184.59,57.3899928]
[1755772863170,0.06,184.6,184.59,66.56249839]
[1755772863394,0.06,184.62,184.61,39.87991715]
[1755772863594,0.06,184.62,184.61,85.80081477]
[1755772863793,0.06,184.62,184.61,86.51081477]
[1755772864703,0.06,184.62,184.61,91.92763942]
[1755772865005,0.06,184.62,184.61,101.92763942]
[1755772865202,0.06,184.66,184.65,39.59559401]
[1755772865505,0.06,184.66,184.65,85.55649163]
[1755772865698,0.06,184.66,184.65,43.45649163]
[1755772865886,0.72,184.66,184.65,85.55649163]
[1755772866700,0.72,184.66,184.65,87.72680763]
[1755772867219,0.06,184.66,184.65,87.72680763]
[1755772867514,0.06,184.66,184.65,88.43680763]
[1755772867714,0.06,184.66,184.65,93.85245886]
[1755772867931,0.06,184.66,184.65,107.99767962]
[1755772868084,0.06,184.68,184.67,7.72179524]
[1755772868285,0.06,184.68,184.67,49.82179524]
[1755772868702,0.06,184.68,184.67,45.96089762]
[1755772868908,0.06,184.68,184.67,59.55649163]
[1755772870392,0.06,184.68,184.67,68.83245396]
[1755772870707,0.06,184.7,184.69,19.01007232]
[1755772871013,0.06,184.7,184.69,65.25529308]
[1755772871218,0.06,184.7,184.69,65.96529308]
[1755772871594,0.06,184.7,184.69,65.25529308]
[1755772872488,0.06,184.7,184.69,62.01030577]
[1755772872926,0.72,184.7,184.69,19.62598263]
[1755772873125,0.72,184.7,184.69,42.1]
[1755772873442,0.72,184.7,184.69,45.96089762]
[1755772873612,0.72,184.7,184.68,29.860897]
[1755772873814,0.72,184.7,184.69,45.98089762]
[1755772874024,0.06,184.7,184.69,71.98089762]
[1755772874497,0.06,184.7,184.69,45.98089762]
[1755772874698,0.06,184.7,184.69,59.57649163]
[1755772874929,0.06,184.7,184.69,65.70096994]
[1755772875508,0.06,184.7,184.69,65.98529308]
[1755772876035,0.06,184.7,184.69,65.27529308]
[1755772876436,0.06,184.7,184.69,23.86529308]
[1755772876603,0.06,184.72,184.71,13.59559401]
[1755772876806,0.06,184.72,184.71,59.88081477]
[1755772877424,0.06,184.72,184.71,17.45649163]
[1755772877598,0.06,184.72,184.71,65.01038367]
[1755772878519,0.06,184.72,184.71,68.13396281]
[1755772879116,0.06,184.74,184.73,23.59559401]
[1755772879334,0.71,184.78,184.77,39.59559401]
[1755772879530,3.02216384,184.85,184.77,89.47738925]
[1755772879840,0.71,184.8,184.78,42.16]
[1755772880032,3.02216384,184.85,184.81,26.0]
[1755772880534,3.02216384,184.85,184.81,29.86089762]
[1755772880713,0.71,184.84,184.81,29.86089762]
[1755772881317,0.71,184.84,184.82,3.86089762]
[1755772881717,0.71,184.84,184.81,26.0]
[1755772882415,0.71,184.84,184.81,29.86089762]
[1755772882837,0.71,184.84,184.82,3.86089762]
[1755772883926,0.71,184.84,184.81,26.0]
[1755772884120,0.71,184.84,184.82,3.86089762]
[1755772884341,0.71,184.83,184.82,3.86089762]
[1755772884848,0.71,184.83,184.82,29.86089762]
[1755772885063,3.73216384,184.85,184.83,26.0]
[1755772885356,0.2,184.85,184.84,3.86089762]
[1755772885851,0.91,184.85,184.84,3.86089762]
[1755772886061,0.91,184.85,184.83,26.0]
[1755772886264,0.71,184.84,184.83,26.0]
[1755772886468,0.71,184.84,184.83,29.86089762]
[1755772886624,0.2,184.85,184.83,29.86089762]
[1755772886824,0.2,184.85,184.84,3.86089762]
[1755772887041,0.91,184.85,184.84,3.86089762]
[1755772887255,0.2,184.85,184.84,3.86089762]
[1755772887728,0.91,184.85,184.84,3.86089762]
[1755772888058,0.91,184.85,184.83,26.0]
[1755772888436,0.91,184.85,184.84,3.86089762]
[1755772889539,0.2,184.85,184.84,3.86089762]
[1755772890242,0.91,184.85,184.83,29.86089762]
[1755772890454,0.91,184.85,184.82,3.860897]
[1755772890634,0.2,184.85,184.84,26.0]
[1755772890834,0.2,184.85,184.84,29.86089762]
[1755772891246,0.91,184.85,184.84,26.0]
[1755772892252,4.77089762,184.85,184.83,26.0]
[1755772892468,4.57089762,184.84,184.83,26.0]
[1755772892632,4.57089762,184.84,184.77,68.12]
[1755772892824,3.86089762,184.82,184.81,26.0]
[1755772893028,3.86089762,184.82,184.78,13.59559401]
[1755772893029,4.57089762,184.82,184.76,4.570897]
[1755772893229,0.71,184.81,184.72,0.67]
[1755772893477,0.71,184.81,184.77,26.0]
[1755772893679,4.57089762,184.8,184.77,26.0]
[1755772893884,4.57089762,184.8,184.75,3.86089762]
[1755772894091,3.86089762,184.8,184.75,3.86089762]
[1755772894286,0.71,184.79,184.75,3.86089762]
[1755772894455,0.71,184.79,184.77,26.0]
[1755772894853,0.71,184.79,184.76,26.0]
[1755772895264,0.48432314,184.85,184.73,3.860897]
[1755772895265,3.86089762,184.77,184.73,3.860897]
[1755772895477,0.71,184.76,184.73,13.59559401]
[1755772895677,3.86089762,184.74,184.66,0.67]
[1755772895884,3.86089762,184.72,184.68,3.860898]
[1755772896065,3.86089762,184.71,184.66,4.53089762]
[1755772896266,3.86089762,184.7,184.65,46.23089762]
[1755772896584,3.86089762,184.72,184.68,26.0]
[1755772896952,0.71,184.71,184.68,26.0]
[1755772897377,0.71,184.71,184.67,17.45649163]
[1755772897684,0.71,184.71,184.7,26.0]
[1755772898071,0.71,184.75,184.7,26.0]
[1755772898374,0.71,184.78,184.71,0.67]
[1755772898574,0.71,184.78,184.74,3.86089762]
[1755772898776,0.71,184.77,184.74,3.86089762]
[1755772898965,0.71,184.77,184.73,3.86089762]
[1755772899372,3.86089762,184.78,184.73,3.86089762]
[1755772899560,4.57089762,184.76,184.72,26.0]
[1755772899766,0.71,184.75,184.73,26.0]
[1755772899980,3.86089762,184.76,184.73,26.0]
[1755772900196,0.71,184.76,184.73,26.0]
[1755772900365,4.57089762,184.76,184.73,26.0]
[1755772900791,0.28432314,184.84,184.73,26.0]
[1755772900960,0.71,184.83,184.73,26.0]
[1755772901164,0.71,184.83,184.73,29.86089762]
[1755772901376,3.86089762,184.78,184.73,29.86089762]
[1755772901688,3.86089762,184.76,184.73,26.0]
[1755772901895,4.57089762,184.76,184.73,26.0]
[1755772903478,4.57089762,184.76,184.72,3.86089762]
[1755772903893,0.71,184.76,184.72,3.86089762]
[1755772904489,4.57089762,184.78,184.74,26.0]
[1755772904709,0.28432314,184.84,184.75,29.86089762]
[1755772904902,3.86089762,184.79,184.73,13.59559401]
[1755772905092,0.71,184.79,184.74,3.86089762]
[1755772905594,0.71,184.79,184.75,3.86089762]
[1755772905964,0.71,184.78,184.75,3.86089762]
[1755772906366,3.86089762,184.77,184.74,26.0]
[1755772906582,4.57089762,184.76,184.74,26.0]
[1755772906784,4.57089762,184.75,184.74,26.0]
[1755772907091,4.57089762,184.75,184.7,0.03]
[1755772907273,4.57089762,184.74,184.72,26.0]
[1755772907474,4.57089762,184.78,184.72,30.52089762]
[1755772907700,0.71,184.79,184.74,3.86089762]
[1755772907881,0.71,184.79,184.72,26.0]
[1755772907882,2.82302926,184.8,184.76,3.86089762]
[1755772908194,3.53302926,184.8,184.76,3.86089762]
[1755772909799,0.71,184.79,184.75,26.0]
[1755772910105,0.71,184.78,184.75,26.0]
[1755772910404,6.68392688,184.8,184.75,26.0]
[1755772910597,2.82302926,184.8,184.75,29.86089762]
[1755772910902,7.39392688,184.8,184.75,29.86089762]
[1755772911273,6.68392688,184.8,184.75,29.86089762]
[1755772911471,0.71,184.79,184.75,26.0]
[1755772912183,6.68392688,184.8,184.75,26.66]
[1755772912502,6.68392688,184.8,184.75,30.52089762]
[1755772912677,7.39392688,184.8,184.75,30.52089762]
[1755772912876,6.68392688,184.8,184.76,0.66]
[1755772913412,3.86089762,184.81,184.76,0.66]
[1755772913576,0.71,184.82,184.77,4.52089762]
[1755772913775,7.39378555,184.82,184.77,4.52089762]
[1755772913971,2.82288793,184.82,184.75,26.0]
[1755772914176,2.82288793,184.82,184.79,29.86089762]
[1755772914400,2.82288793,184.82,184.8,3.86089762]
[1755772915395,2.82288793,184.82,184.76,13.59559401]
[1755772915396,0.2,184.85,184.81,4.52089762]
[1755772915584,0.2,184.85,184.82,3.86089762]
[1755772916106,0.2,184.85,184.81,26.0]
[1755772916399,0.91,184.85,184.81,3.86089762]
[1755772917092,0.71,184.84,184.8,26.0]
[1755772917475,0.71,184.84,184.81,3.86089762]
[1755772917700,0.2,184.85,184.83,29.86089762]
[1755772917888,0.2,184.85,184.84,3.86089762]
[1755772918409,0.2,184.85,184.83,3.86089762]
[1755772919418,0.2,184.85,184.84,4.52089762]
[1755772919785,0.2,184.85,184.84,0.66]
[1755772920114,0.91,184.85,184.82,26.0]
[1755772920780,4.57089762,184.84,184.79,29.86089762]
[1755772920982,0.2,184.85,184.81,26.0]
[1755772920983,0.71,184.83,184.81,26.0]
[1755772921186,0.91,184.85,184.81,26.0]
[1755772921380,4.77089762,184.85,184.81,26.0]
[1755772921787,0.2,184.85,184.81,26.0]
[1755772922078,0.91,184.85,184.82,3.86089762]
[1755772922283,0.91,184.85,184.81,26.0]
[1755772922808,4.57089762,184.84,184.81,26.0]